fUST/lending_fUST_20250617
["ID","MTS","AMOUNT","RATE_DAILY","PERIOD"]
[366264274,1750165844169,-430.0,0.00024109,6]
[366264275,1750165844179,-1021.85,0.00024109,6]
[366264276,1750165844188,-1222.5,0.00024109,6]
[366264277,1750165844198,-460.0,0.00024109,6]
[366264278,1750165844208,-460.0,0.00024109,6]
[366264279,1750165844217,-190.58428115,0.00024109,6]
[366264280,1750165844228,-460.0,0.00024109,6]
[366264281,1750165844237,-435.44725883,0.00024109,6]
[366264282,1750165844247,-358.90046785,0.00024109,6]
[366264283,1750165844257,-1471.68,0.00024109,2]
[366264284,1750165844268,-460.0,0.00024109,6]
[366264285,1750165844277,-6383.11,0.00024109,6]
[366264286,1750165844287,-2221.85,0.00024109,6]
[366264287,1750165844296,-460.0,0.00024109,6]
[366264288,1750165844306,-3000.0,0.0002411,2]
[366264289,1750165844316,-3332.09407554,0.00024119,2]
[366264290,1750165844325,-3000.0,0.0002412,2]
[366264291,1750165844335,-3000.0,0.0002413,2]
[366264292,1750165844344,-578.85285043,0.00024136,6]
[366264293,1750165844354,-460.0,0.00024136,6]
[366264294,1750165844363,-460.0,0.00024136,6]
[366264295,1750165844373,-460.0,0.00024136,6]
[366264296,1750165844383,-460.0,0.00024136,6]
[366264297,1750165844392,-370.0,0.00024136,6]
[366264298,1750165844402,-460.0,0.00024136,6]
[366264299,1750165844411,-1199.91,0.00024136,6]
[366264300,1750165844424,-460.0,0.00024136,6]
[366264301,1750165844435,-460.0,0.00024136,6]
[366264302,1750165844444,-460.0,0.00024136,6]
[366264303,1750165844453,-567.09454621,0.00024136,6]
[366264304,1750165844463,-502.87760963,0.00024136,6]
[366264305,1750165844472,-366.0948715,0.00024136,6]
[366264306,1750165844481,-460.0,0.00024136,6]
[366264307,1750165844490,-460.0,0.00024136,6]
[366264308,1750165844499,-460.0,0.00024136,6]
[366264309,1750165844508,-460.0,0.00024136,6]
[366264310,1750165844518,-460.0,0.00024136,6]
[366264311,1750165844527,-460.0,0.00024136,6]
[366264312,1750165844536,-460.0,0.00024136,6]
[366264313,1750165844546,-415.52558014,0.00024136,6]
[366264314,1750165844555,-460.0,0.00024136,6]
[366264315,1750165844564,-460.0,0.00024136,6]
[366264316,1750165844573,-460.0,0.00024136,6]
[366264317,1750165844582,-460.0,0.00024136,6]
[366264318,1750165844591,-460.0,0.00024136,6]
[366264319,1750165844601,-460.0,0.00024136,6]
[366264320,1750165844611,-413.51014504,0.00024136,6]
[366264321,1750165844621,-460.0,0.00024136,6]
[366264322,1750165844630,-460.0,0.00024136,6]
[366264323,1750165844639,-442.19252578,0.00024136,6]
[366264324,1750165844649,-490.27702702,0.00024136,6]
[366264325,1750165844658,-460.0,0.00024136,6]
[366264326,1750165844667,-460.0,0.00024136,6]
[366264327,1750165844677,-1136.55,0.00024136,6]
[366264328,1750165844687,-460.0,0.00024136,6]
[366264329,1750165844696,-460.0,0.00024136,6]
[366264330,1750165844705,-460.0,0.00024136,6]
[366264331,1750165844714,-460.0,0.00024136,6]
[366264332,1750165844724,-460.0,0.00024136,6]
[366264333,1750165844733,-423.18231507,0.00024136,6]
[366264334,1750165844743,-460.0,0.00024136,6]
[366264335,1750165844752,-460.0,0.00024136,6]
[366264336,1750165844761,-460.0,0.00024136,6]
[366264337,1750165844771,-460.0,0.00024136,6]
[366264338,1750165844780,-460.0,0.00024136,6]
[366264339,1750165844790,-430.0,0.00024136,6]
[366264340,1750165844799,-469.0931,0.00024136,6]
[366264341,1750165844808,-440.0,0.00024136,6]
[366264342,1750165844817,-460.0,0.00024136,6]
[366264343,1750165844827,-460.0,0.00024136,6]
[366264344,1750165844837,-460.0,0.00024136,6]
[366264345,1750165844847,-460.0,0.00024136,6]
[366264346,1750165844856,-460.0,0.00024136,6]
[366264347,1750165844865,-460.0,0.00024136,6]
[366264348,1750165844875,-460.0,0.00024136,6]
[366264349,1750165844885,-460.0,0.00024136,6]
[366264350,1750165844895,-460.0,0.00024136,6]
[366264351,1750165844904,-485.48185441,0.00024136,6]
[366264352,1750165844913,-401.95149616,0.00024136,6]
[366264353,1750165844922,-1653.26,0.00024136,2]
[366264354,1750165844932,-460.0,0.00024136,6]
[366264355,1750165844941,-460.0,0.00024136,6]
[366264356,1750165844950,-460.0,0.00024136,6]
[366264357,1750165844959,-460.0,0.00024136,6]
[366264358,1750165844968,-878.72,0.00024136,6]
[366264359,1750165844979,-460.0,0.00024136,6]
[366264360,1750165844988,-460.0,0.00024136,6]
[366264361,1750165844997,-460.0,0.00024136,6]
[366264362,1750165845007,-244.43661145,0.00024136,6]
[366264363,1750165845016,-460.0,0.00024136,6]
[366264364,1750165845025,-460.0,0.00024136,6]
[366264365,1750165845034,-460.0,0.00024136,6]
[366264366,1750165845044,-460.0,0.00024136,6]
[366264367,1750165845053,-460.0,0.00024136,6]
[366264368,1750165845062,-460.0,0.00024136,6]
[366264369,1750165845071,-460.0,0.00024136,6]
[366264370,1750165845081,-460.0,0.00024136,6]
[366264371,1750165845091,-360.0,0.00024136,6]
[366264372,1750165845100,-460.0,0.00024136,6]
[366264373,1750165845109,-460.0,0.00024136,6]
[366264374,1750165845119,-460.0,0.00024136,6]
[366264375,1750165845128,-460.0,0.00024136,6]
[366264376,1750165845137,-440.0,0.00024136,6]
[366264377,1750165845146,-460.0,0.00024136,6]
[366264378,1750165845155,-460.0,0.00024136,6]
[366264379,1750165845164,-460.0,0.00024136,6]
[366264380,1750165845174,-460.0,0.00024136,6]
[366264381,1750165845183,-460.0,0.00024136,6]
[366264382,1750165845192,-302.3695488,0.00024136,6]
[366264383,1750165845201,-460.0,0.00024136,6]
[366264384,1750165845210,-460.0,0.00024136,6]
[366264385,1750165845219,-460.0,0.00024136,6]
[366264386,1750165845228,-1304.72,0.00024136,6]
[366264387,1750165845237,-460.0,0.00024136,6]
[366264388,1750165845247,-460.0,0.00024136,6]
[366264389,1750165845256,-460.0,0.00024136,6]
[366264390,1750165845265,-460.0,0.00024136,6]
[366264391,1750165845275,-460.0,0.00024136,6]
[366264392,1750165845284,-460.0,0.00024136,6]
[366264393,1750165845293,-460.0,0.00024136,6]
[366264394,1750165845302,-273.49843455,0.00024136,6]
[366264395,1750165845311,-460.0,0.00024136,6]
[366264396,1750165845321,-414.19914957,0.00024136,6]
[366264397,1750165845330,-460.0,0.00024136,6]
[366264398,1750165845339,-460.0,0.00024136,6]
[366264399,1750165845349,-460.0,0.00024136,6]
[366264400,1750165845358,-460.0,0.00024136,6]
[366264401,1750165845367,-460.0,0.00024136,6]
[366264402,1750165845375,-460.0,0.00024136,6]
[366264403,1750165845385,-460.0,0.00024136,6]
[366264404,1750165845395,-460.0,0.00024136,6]
[366264405,1750165845404,-460.0,0.00024136,6]
[366264406,1750165845414,-218.04991929,0.00024136,6]
[366264407,1750165845423,-460.0,0.00024136,6]
[366264408,1750165845433,-460.0,0.00024136,6]
[366264409,1750165845442,-350.0,0.00024136,6]
[366264410,1750165845451,-460.0,0.00024136,6]
[366264411,1750165845460,-460.0,0.00024136,6]
[366264412,1750165845470,-460.0,0.00024136,6]
[366264413,1750165845479,-460.0,0.00024136,6]
[366264414,1750165845489,-440.0,0.00024136,6]
[366264415,1750165845499,-410.0,0.00024136,6]
[366264416,1750165845509,-460.0,0.00024136,6]
[366264417,1750165845518,-515.48,0.00024136,6]
[366264418,1750165845528,-460.0,0.00024136,6]
[366264419,1750165845538,-7113.65,0.00024136,6]
[366264420,1750165845547,-460.0,0.00024136,6]
[366264421,1750165845556,-1801.7,0.00024136,6]
[366264422,1750165845566,-690.5,0.00024136,6]
[366264423,1750165845575,-412.81915587,0.00024136,6]
[366264424,1750165845585,-460.0,0.00024136,6]
[366264425,1750165845594,-460.0,0.00024136,6]
[366264426,1750165845605,-460.0,0.00024136,6]
[366264427,1750165845614,-460.0,0.00024136,6]
[366264428,1750165845624,-460.0,0.00024136,6]
[366264429,1750165845633,-460.0,0.00024136,6]
[366264430,1750165845643,-460.0,0.00024136,6]
[366264431,1750165845653,-445.1135048,0.00024136,6]
[366264432,1750165845663,-460.0,0.00024136,6]
[366264433,1750165845672,-463.13740274,0.00024136,6]
[366264434,1750165845682,-2451.9,0.00024136,6]
[366264435,1750165845691,-460.0,0.00024136,6]
[366264436,1750165845701,-349.73710515,0.00024136,6]
[366264437,1750165845711,-460.0,0.00024136,6]
[366264438,1750165845721,-360.0,0.00024136,6]
[366264439,1750165845730,-460.0,0.00024136,6]
[366264440,1750165845739,-460.0,0.00024136,6]
[366264441,1750165845750,-460.0,0.00024136,6]
[366264442,1750165845760,-460.0,0.00024136,6]
[366264443,1750165845769,-460.0,0.00024136,6]
[366264444,1750165845779,-1127.69,0.00024136,6]
[366264445,1750165845789,-460.0,0.00024136,6]
[366264446,1750165845799,-975.09,0.00024136,6]
[366264447,1750165845809,-460.0,0.00024136,6]
[366264448,1750165845818,-460.0,0.00024136,6]
[366264449,1750165845828,-460.0,0.00024136,6]
[366264450,1750165845837,-460.0,0.00024136,6]
[366264451,1750165845848,-460.0,0.00024136,6]
[366264452,1750165845857,-706.94,0.00024136,6]
[366264453,1750165845867,-460.0,0.00024136,6]
[366264454,1750165845876,-460.0,0.00024136,6]
[366264455,1750165845886,-460.0,0.00024136,6]
[366264456,1750165845895,-460.0,0.00024136,6]
[366264457,1750165845904,-496.04,0.00024136,6]
[366264458,1750165845914,-460.0,0.00024136,6]
[366264460,1750165845923,-848.76,0.00024136,6]
[366264461,1750165845932,-1401.3,0.00024136,6]
[366264463,1750165845942,-1042.16,0.00024136,6]
[366264465,1750165845952,-521.09,0.00024136,6]
[366264466,1750165845961,-460.0,0.00024136,6]
[366264467,1750165845970,-460.0,0.00024136,6]
[366264469,1750165845980,-6005.6,0.00024136,6]
[366264471,1750165845989,-460.0,0.00024136,6]
[366264472,1750165845999,-460.0,0.00024136,6]
[366264473,1750165846008,-4967.53,0.00024136,6]
[366264474,1750165846017,-460.0,0.00024136,6]
[366264475,1750165846027,-713.33,0.00024136,6]
[366264476,1750165846036,-1612.56,0.00024136,6]
[366264477,1750165846046,-460.0,0.00024136,6]
[366264478,1750165846055,-460.0,0.00024136,6]
[366264480,1750165846065,-460.0,0.00024136,6]
[366264482,1750165846074,-5766.87,0.00024136,6]
[366264483,1750165846084,-1417.43,0.00024136,6]
[366264484,1750165846209,-460.0,0.00024136,6]
[366264485,1750165846227,-460.0,0.00024136,6]
[366264486,1750165846237,-350.0,0.00024136,6]
[366264487,1750165846247,-460.0,0.00024136,6]
[366264488,1750165846257,-460.0,0.00024136,6]
[366264489,1750165846266,-1181.76,0.00024136,6]
[366264490,1750165846276,-460.0,0.00024136,6]
[366264491,1750165846286,-460.0,0.00024136,6]
[366264492,1750165846295,-460.0,0.00024136,6]
[366264493,1750165846305,-415.75886983,0.00024136,6]
[366264494,1750165846315,-2284.79,0.00024136,6]
[366264495,1750165846325,-224.82145463,0.00024136,6]
[366264496,1750165846334,-460.0,0.00024136,6]
[366264497,1750165846344,-669.9,0.00024136,6]
[366264498,1750165846355,-460.0,0.00024136,6]
[366264499,1750165846366,-402.25295053,0.00024136,6]
[366264500,1750165846376,-1703.81,0.00024136,6]
[366264501,1750165846385,-460.0,0.00024136,6]
[366264502,1750165846395,-460.0,0.00024136,6]
[366264503,1750165846405,-460.0,0.00024136,6]
[366264504,1750165846414,-2229.99,0.00024136,6]
[366264505,1750165846424,-487.7155333,0.00024136,6]
[366264506,1750165846434,-460.0,0.00024136,6]
[366264507,1750165846444,-900.42,0.00024136,6]
[366264508,1750165846454,-460.0,0.00024136,6]
[366264509,1750165846464,-253.49559253,0.00024136,6]
[366264510,1750165846474,-2189.19,0.00024136,6]
[366264511,1750165846483,-460.0,0.00024136,6]
[366264512,1750165846493,-601.12,0.00024136,6]
[366264513,1750165846503,-181.42680196,0.00024136,6]
[366264514,1750165846512,-460.0,0.00024136,6]
[366264515,1750165846521,-460.0,0.00024136,6]
[366264516,1750165846531,-645.19,0.00024136,6]
[366264517,1750165846541,-918.85,0.00024136,6]
[366264518,1750165846551,-460.0,0.00024136,6]
[366264519,1750165846560,-460.0,0.00024136,6]
[366264520,1750165846570,-152.43636713,0.00024136,6]
[366264521,1750165846579,-460.0,0.00024136,6]
[366264522,1750165846589,-460.0,0.00024136,6]
[366264523,1750165846599,-862.99,0.00024136,6]
[366264524,1750165846609,-424.89427182,0.00024136,6]
[366264525,1750165846619,-464.51351703,0.00024136,6]
[366264526,1750165846629,-1155.02,0.00024136,6]
[366264527,1750165846639,-460.0,0.00024136,6]
[366264528,1750165846648,-400.0,0.00024136,6]
[366264529,1750165846658,-6023.89,0.00024136,6]
[366264530,1750165846667,-413.78074278,0.00024136,6]
[366264531,1750165846676,-460.0,0.00024136,6]
[366264532,1750165846686,-474.03512526,0.00024136,6]
[366264533,1750165846695,-1800.7,0.00024136,6]
[366264534,1750165846705,-469.35,0.00024136,6]
[366264535,1750165846715,-460.0,0.00024136,6]
[366264536,1750165846725,-425.30386907,0.00024136,6]
[366264537,1750165846734,-460.0,0.00024136,6]
[366264538,1750165846744,-756.44,0.00024136,6]
[366264539,1750165846754,-460.0,0.00024136,6]
[366264540,1750165846764,-460.0,0.00024136,6]
[366264541,1750165846774,-1375.04,0.00024136,6]
[366264542,1750165846785,-460.0,0.00024136,6]
[366264543,1750165846797,-460.0,0.00024136,6]
[366264544,1750165846806,-460.0,0.00024136,6]
[366264545,1750165846815,-585.43,0.00024136,6]
[366264546,1750165846825,-467.57688977,0.00024136,6]
[366264547,1750165846836,-460.0,0.00024136,6]
[366264548,1750165846848,-858.12,0.00024136,6]
[366264549,1750165846858,-460.0,0.00024136,6]
[366264550,1750165846867,-2895.33,0.00024136,6]
[366264551,1750165846877,-340.0,0.00024136,6]
[366264552,1750165846887,-2033.31,0.00024136,6]
[366264553,1750165846897,-460.0,0.00024136,6]
[366264554,1750165846907,-5921.4,0.00024136,6]
[366264555,1750165846916,-595.08175579,0.00024136,6]
[366264556,1750165846927,-887.03,0.00024136,6]
[366264557,1750165846936,-4551.35,0.00024136,6]
[366264558,1750165846945,-306.57011729,0.00024136,6]
[366264559,1750165846955,-503.91,0.00024136,6]
[366264560,1750165846965,-1365.39,0.00024136,6]
[366264561,1750165846974,-460.0,0.00024136,6]
[366264562,1750165846983,-754.37,0.00024136,6]
[366264563,1750165846992,-351.53042223,0.00024136,6]
[366264564,1750165847002,-460.0,0.00024136,6]
[366264565,1750165847011,-370.81391833,0.00024136,6]
[366264566,1750165847020,-460.0,0.00024136,6]
[366264567,1750165847030,-460.0,0.00024136,6]
[366264568,1750165847039,-460.0,0.00024136,6]
[366264569,1750165847049,-608.13,0.00024136,6]
[366264570,1750165847059,-460.0,0.00024136,6]
[366264571,1750165847068,-460.0,0.00024136,6]
[366264572,1750165847078,-4372.84,0.00024136,6]
[366264573,1750165847087,-1021.85,0.00024136,6]
[366264574,1750165847097,-1222.5,0.00024136,6]
[366264575,1750165847106,-460.0,0.00024136,6]
[366264576,1750165847116,-460.0,0.00024136,6]
[366264577,1750165847125,-460.0,0.00024136,6]
[366264578,1750165847134,-1471.68,0.00024136,2]
[366264579,1750165847143,-460.0,0.00024136,6]
[366264580,1750165847152,-6383.11,0.00024136,6]
[366264581,1750165847162,-2221.85,0.00024136,6]
[366264582,1750165847171,-460.0,0.00024136,6]
[366264583,1750165847181,-3000.0,0.0002414,2]
[366264584,1750165847190,-3000.0,0.0002415,2]
[366264585,1750165847200,-3000.0,0.0002416,2]
[366264586,1750165847210,-460.0,0.00024164,6]
[366264587,1750165847220,-460.0,0.00024164,6]
[366264588,1750165847229,-440.0,0.00024164,6]
[366264589,1750165847238,-460.0,0.00024164,6]
[366264590,1750165847248,-460.0,0.00024164,6]
[366264591,1750165847258,-1199.91,0.00024164,6]
[366264592,1750165847268,-460.0,0.00024164,6]
[366264593,1750165847277,-420.62,0.00024164,6]
[366264594,1750165847287,-460.0,0.00024164,6]
[366264595,1750165847297,-460.0,0.00024164,6]
[366264596,1750165847306,-460.0,0.00024164,6]
[366264597,1750165847316,-460.0,0.00024164,6]
[366264598,1750165847325,-460.0,0.00024164,6]
[366264599,1750165847344,-460.0,0.00024164,6]
[366264600,1750165847353,-356.65704477,0.00024164,6]
[366264601,1750165847363,-460.0,0.00024164,6]
[366264602,1750165847372,-460.0,0.00024164,6]
[366264603,1750165847383,-460.0,0.00024164,6]
[366264604,1750165847395,-460.0,0.00024164,6]
[366264605,1750165847405,-378.84,0.00024164,6]
[366264606,1750165847415,-442.39562979,0.00024164,6]
[366264607,1750165847425,-429.77487599,0.00024164,6]
[366264608,1750165847434,-460.0,0.00024164,6]
[366264609,1750165847444,-460.0,0.00024164,6]
[366264610,1750165847454,-1136.55,0.00024164,6]
[366264611,1750165847464,-460.0,0.00024164,6]
[366264612,1750165847474,-460.0,0.00024164,6]
[366264613,1750165847483,-546.02551417,0.00024164,6]
[366264614,1750165847493,-460.0,0.00024164,6]
[366264615,1750165847503,-254.12063811,0.00024164,6]
[366264616,1750165847513,-460.0,0.00024164,6]
[366264617,1750165847522,-460.0,0.00024164,6]
[366264618,1750165847532,-460.0,0.00024164,6]
[366264619,1750165847541,-460.0,0.00024164,6]
[366264620,1750165847551,-460.0,0.00024164,6]
[366264621,1750165847561,-460.0,0.00024164,6]
[366264622,1750165847571,-460.0,0.00024164,6]
[366264623,1750165847581,-460.0,0.00024164,6]
[366264624,1750165847591,-460.0,0.00024164,6]
[366264625,1750165847601,-430.0,0.00024164,6]
[366264626,1750165847611,-460.0,0.00024164,6]
[366264627,1750165847621,-460.0,0.00024164,6]
[366264628,1750165847631,-460.0,0.00024164,6]
[366264629,1750165847640,-1653.26,0.00024164,2]
[366264630,1750165847650,-460.0,0.00024164,6]
[366264631,1750165847660,-460.0,0.00024164,6]
[366264632,1750165847669,-340.0,0.00024164,6]
[366264633,1750165847679,-460.0,0.00024164,6]
[366264634,1750165847689,-878.72,0.00024164,6]
[366264635,1750165847699,-200.20553962,0.00024164,6]
[366264636,1750165847708,-602.10853998,0.00024164,6]
[366264637,1750165847719,-432.50221201,0.00024164,6]
[366264638,1750165847729,-460.0,0.00024164,6]
[366264639,1750165847738,-460.0,0.00024164,6]
[366264640,1750165847748,-460.0,0.00024164,6]
[366264641,1750165847757,-460.0,0.00024164,6]
[366264642,1750165847767,-460.0,0.00024164,6]
[366264643,1750165847777,-460.0,0.00024164,6]
[366264644,1750165847786,-460.0,0.00024164,6]
[366264645,1750165847796,-460.0,0.00024164,6]
[366264646,1750165847805,-440.0,0.00024164,6]
[366264647,1750165847814,-460.0,0.00024164,6]
[366264648,1750165847824,-460.0,0.00024164,6]
[366264649,1750165847834,-509.1,0.00024164,6]
[366264650,1750165847844,-460.0,0.00024164,6]
[366264651,1750165847853,-460.0,0.00024164,6]
[366264652,1750165847863,-460.0,0.00024164,6]
[366264653,1750165847872,-450.94390751,0.00024164,6]
[366264654,1750165847881,-429.03054221,0.00024164,6]
[366264655,1750165847892,-360.0,0.00024164,6]
[366264656,1750165847901,-460.0,0.00024164,6]
[366264657,1750165847910,-440.0,0.00024164,6]
[366264658,1750165847920,-1304.72,0.00024164,6]
[366264659,1750165847929,-279.95365614,0.00024164,6]
[366264660,1750165847940,-460.0,0.00024164,6]
[366264661,1750165847949,-460.0,0.00024164,6]
[366264662,1750165847958,-460.0,0.00024164,6]
[366264663,1750165847968,-262.14125915,0.00024164,6]
[366264664,1750165847978,-460.0,0.00024164,6]
[366264665,1750165847987,-460.0,0.00024164,6]
[366264666,1750165847996,-460.0,0.00024164,6]
[366264667,1750165848006,-460.0,0.00024164,6]
[366264668,1750165848016,-460.0,0.00024164,6]
[366264669,1750165848025,-460.0,0.00024164,6]
[366264670,1750165848035,-460.0,0.00024164,6]
[366264671,1750165848045,-460.0,0.00024164,6]
[366264672,1750165848055,-460.0,0.00024164,6]
[366264673,1750165848065,-460.0,0.00024164,6]
[366264674,1750165848074,-460.0,0.00024164,6]
[366264675,1750165848084,-460.0,0.00024164,6]
[366264676,1750165848175,-460.0,0.00024164,6]
[366264677,1750165848199,-460.0,0.00024164,6]
[366264678,1750165848209,-295.81846083,0.00024164,6]
[366264679,1750165848218,-350.0,0.00024164,6]
[366264680,1750165848228,-515.48,0.00024164,6]
[366264681,1750165848238,-460.0,0.00024164,6]
[366264682,1750165848248,-7113.65,0.00024164,6]
[366264683,1750165848257,-460.0,0.00024164,6]
[366264684,1750165848267,-1801.7,0.00024164,6]
[366264685,1750165848277,-690.5,0.00024164,6]
[366264686,1750165848287,-336.85112534,0.00024164,6]
[366264687,1750165848296,-460.0,0.00024164,6]
[366264688,1750165848306,-460.0,0.00024164,6]
[366264689,1750165848315,-460.0,0.00024164,6]
[366264690,1750165848325,-460.0,0.00024164,6]
[366264691,1750165848335,-460.0,0.00024164,6]
[366264692,1750165848344,-460.0,0.00024164,6]
[366264693,1750165848354,-460.0,0.00024164,6]
[366264694,1750165848363,-2451.9,0.00024164,6]
[366264695,1750165848372,-460.0,0.00024164,6]
[366264696,1750165848382,-460.0,0.00024164,6]
[366264697,1750165848391,-460.0,0.00024164,6]
[366264698,1750165848400,-460.0,0.00024164,6]
[366264699,1750165848409,-460.0,0.00024164,6]
[366264700,1750165848419,-460.0,0.00024164,6]
[366264701,1750165848428,-1127.69,0.00024164,6]
[366264702,1750165848437,-400.0,0.00024164,6]
[366264703,1750165848446,-975.09,0.00024164,6]
[366264704,1750165848456,-460.0,0.00024164,6]
[366264705,1750165848465,-358.28624842,0.00024164,6]
[366264706,1750165848474,-460.0,0.00024164,6]
[366264707,1750165848484,-460.0,0.00024164,6]
[366264708,1750165848494,-706.94,0.00024164,6]
[366264709,1750165848504,-460.0,0.00024164,6]
[366264710,1750165848515,-161.5102222,0.00024164,6]
[366264711,1750165848524,-460.0,0.00024164,6]
[366264712,1750165848534,-460.0,0.00024164,6]
[366264713,1750165848544,-496.04,0.00024164,6]
[366264714,1750165848553,-299.84533029,0.00024164,6]
[366264715,1750165848563,-848.76,0.00024164,6]
[366264716,1750165848572,-1401.3,0.00024164,6]
[366264717,1750165848582,-1042.16,0.00024164,6]
[366264718,1750165848591,-521.09,0.00024164,6]
[366264719,1750165848601,-418.14687577,0.00024164,6]
[366264720,1750165848611,-460.0,0.00024164,6]
[366264721,1750165848620,-6005.6,0.00024164,6]
[366264722,1750165848630,-460.0,0.00024164,6]
[366264723,1750165848640,-426.64381757,0.00024164,6]
[366264724,1750165848650,-4967.53,0.00024164,6]
[366264725,1750165848660,-464.54761569,0.00024164,6]
[366264726,1750165848669,-713.33,0.00024164,6]
[366264727,1750165848679,-1612.56,0.00024164,6]
[366264728,1750165848688,-460.0,0.00024164,6]
[366264729,1750165848698,-460.0,0.00024164,6]
[366264730,1750165848708,-5766.87,0.00024164,6]
[366264731,1750165848718,-1417.43,0.00024164,6]
[366264732,1750165848728,-460.0,0.00024164,6]
[366264733,1750165848738,-460.0,0.00024164,6]
[366264734,1750165848748,-460.0,0.00024164,6]
[366264735,1750165848757,-460.0,0.00024164,6]
[366264736,1750165848767,-1181.76,0.00024164,6]
[366264737,1750165848777,-460.0,0.00024164,6]
[366264738,1750165848786,-460.0,0.00024164,6]
[366264739,1750165848796,-440.0,0.00024164,6]
[366264740,1750165848806,-2284.79,0.00024164,6]
[366264741,1750165848815,-330.0,0.00024164,6]
[366264742,1750165848826,-669.9,0.00024164,6]
[366264743,1750165848835,-460.0,0.00024164,6]
[366264744,1750165848848,-1703.81,0.00024164,6]
[366264745,1750165848857,-460.0,0.00024164,6]
[366264746,1750165848867,-400.0,0.00024164,6]
[366264747,1750165848876,-460.0,0.00024164,6]
[366264748,1750165848886,-2229.99,0.00024164,6]
[366264749,1750165848895,-460.0,0.00024164,6]
[366264750,1750165848904,-900.42,0.00024164,6]
[366264751,1750165848914,-460.0,0.00024164,6]
[366264752,1750165848924,-2189.19,0.00024164,6]
[366264753,1750165848934,-460.0,0.00024164,6]
[366264754,1750165848944,-601.12,0.00024164,6]
[366264755,1750165848953,-460.0,0.00024164,6]
[366264756,1750165848963,-460.0,0.00024164,6]
[366264757,1750165848972,-645.19,0.00024164,6]
[366264758,1750165848982,-918.85,0.00024164,6]
[366264759,1750165848991,-460.0,0.00024164,6]
[366264760,1750165849000,-460.0,0.00024164,6]
[366264761,1750165849010,-460.0,0.00024164,6]
[366264762,1750165849019,-460.0,0.00024164,6]
[366264763,1750165849029,-862.99,0.00024164,6]
[366264764,1750165849038,-1155.02,0.00024164,6]
[366264765,1750165849047,-460.0,0.00024164,6]
[366264766,1750165849056,-6023.89,0.00024164,6]
[366264767,1750165849066,-460.0,0.00024164,6]
[366264768,1750165849075,-1800.7,0.00024164,6]
[366264769,1750165849085,-469.35,0.00024164,6]
[366264770,1750165849094,-178.61928109,0.00024164,6]
[366264771,1750165849104,-756.44,0.00024164,6]
[366264772,1750165849114,-460.0,0.00024164,6]
[366264773,1750165849124,-155.06262506,0.00024164,6]
[366264774,1750165849134,-1375.04,0.00024164,6]
[366264775,1750165849143,-460.0,0.00024164,6]
[366264776,1750165849153,-460.0,0.00024164,6]
[366264777,1750165849162,-460.0,0.00024164,6]
[366264778,1750165849172,-585.43,0.00024164,6]
[366264779,1750165849182,-460.0,0.00024164,6]
[366264780,1750165849191,-858.12,0.00024164,6]